bitfinex-derivatives/quotes_ETHF0:USTF0_20250416
["timestamp","ask_amount","ask_price","bid_price","bid_amount"]
[1744763903152,1.25978,1587.7,1587.6,1.2692512]
[1744763903459,10.7083649,1587.8,1587.7,1.25978]
[1744763903647,10.7083649,1587.8,1587.7,40.8]
[1744763904355,10.7083649,1587.8,1587.7,42.05978]
[1744763904553,10.7083649,1587.8,1587.7,40.8]
[1744763904855,15.7083649,1587.8,1587.7,42.05978]
[1744763905457,15.7083649,1587.8,1587.7,40.8]
[1744763905650,18.9161649,1587.8,1587.7,40.8]
[1744763905855,22.6110649,1587.8,1587.7,40.8]
[1744763906156,17.6110649,1587.8,1587.7,40.8]
[1744763907055,22.6110649,1587.8,1587.7,40.8]
[1744763908951,1.26009,1587.4,1587.3,1.26005]
[1744763909457,5.9776449,1587.4,1587.3,42.06005]
[1744763909644,5.9776449,1587.4,1587.3,45.69515]
[1744763910859,4.46764,1587.7,1587.6,1.25986]
[1744763911157,7.94914,1587.7,1587.6,1.25986]
[1744763911358,13.9267849,1587.7,1587.6,1.25986]
[1744763912557,12.6669449,1587.7,1587.6,1.25986]
[1744763912854,9.4591449,1587.7,1587.6,1.25986]
[1744763913162,6.6722012,1587.9,1587.8,1.2597]
[1744763913550,13.9094661,1587.9,1587.8,42.0597]
[1744763915860,13.9094661,1587.9,1587.8,40.8]
[1744763916052,13.9094661,1587.9,1587.8,42.0597]
[1744763916252,10.7016661,1587.9,1587.8,42.0597]
[1744763916656,10.7016661,1587.9,1587.8,40.8]
[1744763917363,13.9094661,1587.9,1587.8,40.8]
[1744763917955,18.9094661,1587.9,1587.8,40.8]
[1744763918357,10.7016661,1587.9,1587.8,42.0597]
[1744763918556,9.4420461,1587.9,1587.8,42.0597]
[1744763918753,5.9776461,1587.9,1587.8,42.0597]
[1744763918958,5.9776461,1587.9,1587.8,46.9387]
[1744763919267,1.2e-06,1587.9,1587.8,55.1465]
[1744763919468,1.2e-06,1587.9,1587.8,62.1911]
[1744763921473,1.2e-06,1587.9,1587.8,57.1911]
[1744763922071,5.9776461,1587.9,1587.8,57.1911]
[1744763922269,1.2e-06,1587.9,1587.8,50.4619]
[1744763923673,5.9776461,1587.9,1587.8,50.4619]
[1744763924375,1.25971,1587.8,1587.5,3.14985]
[1744763924579,10.8052549,1587.8,1587.4,14.78699]
[1744763924774,5.9776449,1587.7,1587.6,1.25981]
[1744763924974,9.5455449,1587.7,1587.6,1.25981]
[1744763925179,14.5455449,1587.7,1587.5,42.0599]
[1744763925475,5.9776449,1587.6,1587.5,42.0599]
[1744763925872,9.5126449,1587.6,1587.5,42.0599]
[1744763929082,10.7725049,1587.6,1587.5,42.0599]
[1744763929281,15.7725049,1587.6,1587.5,42.0599]
[1744763930282,9.5126449,1587.6,1587.5,42.0599]
[1744763931777,5.9776449,1587.6,1587.5,50.7021]
[1744763931972,3.2078012,1587.9,1587.8,1.2597]
[1744763932179,1.2e-06,1587.9,1587.8,1.2597]
[1744763932383,1.2e-06,1587.9,1587.8,6.1387]
[1744763932981,5.9776461,1587.9,1587.8,6.1387]
[1744763934189,5.9776461,1587.9,1587.8,1.2597]
[1744763934581,10.9068661,1587.9,1587.8,1.2597]
[1744763934787,9.6472461,1587.9,1587.8,1.2597]
[1744763935190,1.2e-06,1587.9,1587.8,6.1387]
[1744763935588,5.9776461,1587.9,1587.8,6.1387]
[1744763936290,1.2e-06,1587.9,1587.8,11.1387]
[1744763936485,1.2e-06,1587.9,1587.8,17.9609]
[1744763938895,1.2e-06,1587.9,1587.8,58.7609]
[1744763939488,1.2e-06,1587.9,1587.8,80.9740448]
[1744763939690,3.6696,1588.4,1588.3,1.2593]
[1744763940184,9.6472449,1588.4,1588.3,1.2593]
[1744763940382,9.6472449,1588.4,1588.3,42.0593]
[1744763940577,15.9064649,1588.4,1588.3,42.0593]
[1744763940783,19.1142649,1588.4,1588.3,40.8]
[1744763941985,19.1142649,1588.4,1588.3,42.0593]
[1744763942191,17.8550449,1588.4,1588.3,42.0593]
[1744763942792,19.1142649,1588.4,1588.3,42.0593]
[1744763942980,12.8550449,1588.4,1588.3,42.0593]
[1744763943384,14.1142649,1588.4,1588.3,42.0593]
[1744763943793,19.1142649,1588.4,1588.3,40.8]
[1744763945298,19.1142649,1588.4,1588.3,42.0593]
[1744763945688,19.1142649,1588.4,1588.3,40.8]
[1744763945894,1.2593,1588.3,1588.2,0.0094512]
[1744763946192,14.5917449,1588.3,1588.2,0.0094512]
[1744763946397,14.5917449,1588.3,1588.2,40.8094512]
[1744763946398,19.5917449,1588.3,1588.2,40.8094512]
[1744763946785,19.5917449,1588.3,1588.2,42.0688312]
[1744763946984,19.5917449,1588.3,1588.2,40.8094512]
[1744763947391,19.5917449,1588.3,1588.2,42.0688312]
[1744763947685,13.3324449,1588.3,1588.2,42.0688312]
[1744763947890,14.5917449,1588.3,1588.2,42.0688312]
[1744763948090,13.3324449,1588.3,1588.2,42.0688312]
[1744763948498,14.5917449,1588.3,1588.2,42.0688312]
[1744763948896,14.5917449,1588.3,1588.2,40.8094512]
[1744763949394,0.0094512,1588.5,1588.4,1.25922]
[1744763949703,0.0094512,1588.5,1588.4,5.18742]
[1744763949897,0.0094512,1588.5,1588.4,8.84902]
[1744763950092,13.74332274,1588.7,1588.4,8.84902]
[1744763950093,6.25952274,1588.7,1588.6,1.25907]
[1744763950298,10.97045764,1588.7,1588.6,1.25907]
[1744763950699,10.97045764,1588.7,1588.6,4.92067]
[1744763951000,10.97045764,1588.7,1588.6,8.12847]
[1744763951196,6.25952274,1588.7,1588.6,8.12847]
[1744763951498,8.3614251,1588.8,1588.7,1.25899]
[1744763951706,10.44315855,1588.9,1588.8,1.25891]
[1744763951895,6.28836262,1589.2,1589.1,1.25867]
[1744763952203,14.63459752,1589.2,1589.1,46.93367]
[1744763953502,10.99929752,1589.2,1589.1,46.93367]
[1744763954300,6.28836262,1589.2,1589.1,51.93367]
[1744763955497,10.99929752,1589.2,1589.1,46.93367]
[1744763956407,4.7109349,1589.2,1589.1,46.93367]
[1744763958510,3.7977,1589.5,1589.4,1.25843]
[1744763958705,4.7109349,1589.4,1589.3,1.25851]
[1744763959212,7.5194,1589.8,1589.7,1.25819]
[1744763959399,7.6848,1589.8,1589.7,1.25819]
[1744763959603,7.0648,1590.0,1589.9,1.25804]
[1744763960006,11.7757349,1590.0,1589.9,6.13004]
[1744763960307,4.7109349,1590.0,1589.9,4.872]
[1744763960500,1.25804,1589.9,1589.8,1.25807]
[1744763960701,1.25812,1589.8,1589.7,6.13018]
[1744763960906,5.9690549,1589.8,1589.7,4.872]
[1744763961104,9.8260549,1589.8,1589.7,1.25819]
[1744763961303,8.5679349,1589.8,1589.6,1.25824]
[1744763961611,4.7109349,1589.7,1589.6,1.25827]
[1744763961811,8.5679349,1589.7,1589.6,1.25827]
[1744763964012,7.95363,1590.2,1589.8,3.1453]
[1744763964211,9.6612149,1590.1,1589.8,4.8804512]
[1744763964511,8.4033349,1590.1,1590.0,1.25796]
[1744763964911,4.7109349,1590.1,1590.0,1.25796]
[1744763965318,4.7109349,1590.1,1590.0,42.05796]
[1744763966010,3.7282,1590.2,1590.1,1.25788]
[1744763966209,4.7109349,1590.1,1590.0,42.05796]
[1744763966614,8.4391349,1590.1,1590.0,42.05796]
[1744763967113,9.6970149,1590.1,1590.0,42.05796]
[1744763967316,8.4391349,1590.1,1590.0,42.05796]
[1744763968711,12.9048149,1590.1,1590.0,40.8]
[1744763969306,12.9048149,1590.1,1590.0,42.05796]
[1744763969513,3.2078,1590.3,1590.0,46.92796]
[1744763969711,4.7109349,1590.2,1590.1,1.25783]
[1744763969914,8.3324349,1590.2,1590.1,1.25783]
[1744763970218,4.7109349,1590.2,1590.1,1.25783]
[1744763970818,4.7109349,1590.2,1590.0,46.92789]
[1744763971007,9.5903149,1590.1,1590.0,46.92789]
[1744763971213,9.5903149,1590.1,1590.0,45.67]
[1744763971214,8.08718,1590.1,1590.0,45.67]
[1744763971414,12.7981149,1590.1,1590.0,45.67]
[1744763971618,12.7981149,1590.1,1590.0,46.92796]
[1744763972018,11.5402349,1590.1,1590.0,46.92796]
[1744763972824,4.7109349,1590.1,1590.0,46.92796]
[1744763974915,8.3707349,1590.1,1590.0,46.92796]
[1744763975323,9.6286149,1590.1,1590.0,46.92796]
[1744763975830,9.6286149,1590.1,1590.0,45.67]
[1744763976122,1.25804,1589.9,1589.8,0.0094512]
[1744763976317,4.46584,1589.9,1589.8,1.2675712]
[1744763976526,9.1767749,1589.9,1589.8,42.0675712]
[1744763977224,9.1767749,1589.9,1589.8,40.8094512]
[1744763977529,14.1767749,1589.9,1589.8,0.0094512]
[1744763977724,18.0280749,1589.9,1589.8,0.0094512]
[1744763978325,13.0280749,1589.9,1589.8,1.2675712]
[1744763980126,13.0280749,1589.9,1589.8,0.0094512]
[1744763980424,18.0280749,1589.9,1589.8,0.0094512]
[1744763980624,18.0280749,1589.9,1589.8,1.2675712]
[1744763980818,18.0280749,1589.9,1589.8,0.0094512]
[1744763981727,18.0280749,1589.9,1589.8,1.2675712]
[1744763982228,18.0280749,1589.9,1589.8,0.0094512]
[1744763982425,13.0280749,1589.9,1589.8,0.0094512]
[1744763982921,11.7700349,1589.9,1589.8,1.2675712]
[1744763983121,8.5622349,1589.9,1589.8,4.8741712]
[1744763983426,4.7109349,1589.9,1589.8,9.7421712]
[1744763983618,1.25799,1590.0,1589.9,1.25797]
[1744763983817,5.9689249,1590.0,1589.9,45.56677]
[1744763984427,5.9689249,1590.0,1589.9,42.05804]
[1744763984628,5.9689249,1590.0,1589.9,45.56684]
[1744763984819,4.7109349,1590.0,1589.9,45.56684]
[1744763985328,1.25792,1590.1,1590.0,1.25796]
[1744763985526,5.01276,1590.2,1590.1,1.25788]
[1744763986226,1.25788,1590.1,1590.0,3.5088]
[1744763986425,9.4439149,1590.1,1590.0,3.5088]
[1744763988017,9.4439149,1590.1,1590.0,4.76676]
[1744763988523,4.7109349,1590.1,1590.0,4.76676]
[1744763988727,1.2578,1590.3,1590.2,1.2578]
[1744763989230,4.7109349,1590.3,1590.2,1.2578]
[1744763989434,5.9686549,1590.3,1590.2,4.7023]
[1744763989930,1.2578,1590.2,1590.1,4.867]
[1744763990123,9.4093349,1590.2,1590.1,4.867]
[1744763990630,9.4093349,1590.2,1589.9,45.667]
[1744763990631,1.25796,1590.0,1589.9,45.667]
[1744763990836,5.9688749,1590.1,1589.9,49.1115]
[1744763991036,9.4094749,1590.1,1590.0,1.25796]
[1744763991335,9.4094749,1590.1,1590.0,4.70246]
[1744763991830,8.1515349,1590.1,1590.0,4.70246]
[1744763992028,9.4094149,1590.1,1590.0,4.70246]
[1744763993035,4.7109349,1590.1,1590.0,4.70246]
[1744763996038,5.9688149,1590.1,1590.0,4.70246]
[1744763996336,4.7109349,1590.1,1590.0,4.70246]
[1744763997037,8.1235349,1590.1,1590.0,4.70246]
[1744763997236,4.7109349,1590.1,1590.0,4.70246]
[1744763997538,4.46549,1590.4,1590.0,4.70246]
[1744763997539,1.25773,1590.3,1590.2,1.25773]
[1744763997838,9.3812649,1590.3,1590.2,1.25773]
[1744763999141,8.1235349,1590.3,1590.2,1.25773]
[1744763999339,4.7109349,1590.3,1590.2,4.83603]
[1744763999527,4.7109349,1590.3,1590.2,9.70303]
[1744764001152,5.9686549,1590.3,1590.2,9.70303]
[1744764001453,9.1764549,1590.3,1590.2,6.12473]
[1744764001651,12.6374549,1590.3,1590.2,4.867]
[1744764001950,1.25796,1590.0,1589.9,40.8]
[1744764002145,4.46576,1590.0,1589.9,40.8]
[1744764002346,9.1766949,1590.0,1589.9,40.8]
[1744764002746,12.6376949,1590.0,1589.9,40.8]
[1744764003353,9.4298949,1590.0,1589.9,42.05804]
[1744764003652,9.4298949,1590.0,1589.9,40.8]
[1744764004653,1.25804,1589.9,1589.8,0.0094512]
[1744764004951,9.4650749,1589.9,1589.8,0.0094512]
[1744764005146,14.4650749,1589.9,1589.8,0.0094512]
[1744764007846,20.4010749,1589.9,1589.8,1.2e-06]
[1744764008048,15.4010749,1589.9,1589.8,1.2e-06]
[1744764008456,9.4650749,1589.9,1589.8,1.2e-06]
[1744764009556,14.4650749,1589.9,1589.8,1.2e-06]
[1744764009753,20.4010749,1589.9,1589.8,1.2e-06]
[1744764013257,1.25859,1589.2,1589.1,13.24401177]
[1744764013558,1.25867,1589.1,1589.0,3.5555]
[1744764013757,9.5592049,1589.1,1589.0,44.3555]
[1744764013959,9.5592049,1589.1,1589.0,40.8]
[1744764014155,4.7109349,1589.1,1589.0,47.05875]
[1744764014458,3.2078,1589.2,1589.1,1.25867]
[1744764014661,7.9187349,1589.2,1589.1,4.94087]
[1744764014860,3.2078,1589.5,1589.4,1.25839]
[1744764015060,1.25851,1589.3,1589.2,8.64083]
[1744764015260,1.25851,1589.3,1589.2,8.64089]
[1744764015561,5.9694449,1589.3,1589.2,8.64089]
[1744764016060,4.7109349,1589.3,1589.2,8.64089]
[1744764016361,5.9694449,1589.3,1589.2,8.64089]
[1744764016561,1.25859,1589.2,1589.1,3.4244]
[1744764016761,5.9695249,1589.2,1589.1,8.36347]
[1744764016955,5.9695249,1589.2,1589.1,13.36347]
[1744764018064,5.9695249,1589.2,1589.1,8.36347]
[1744764018262,5.9695249,1589.2,1589.1,3.6804]
[1744764018558,1.25867,1589.1,1589.0,44.5001]
[1744764018766,9.6893049,1589.1,1589.0,44.5001]
[1744764018967,9.6893049,1589.1,1589.0,48.1805]
[1744764019763,4.7109349,1589.1,1589.0,48.1805]
[1744764020067,1.25862,1589.2,1589.1,1.25862]
[1744764020466,4.7109349,1589.2,1589.1,1.25862]
[1744764020769,4.7109349,1589.2,1589.1,4.46642]
[1744764020966,4.7109349,1589.2,1589.1,14.33242]
[1744764021566,3.2078,1589.5,1589.3,1.25848]
[1744764021876,5.9693949,1589.4,1589.3,1.25848]
[1744764022169,5.9693949,1589.4,1589.3,1.25851]
[1744764022872,1.25851,1589.3,1589.2,5.07394]
[1744764023174,5.9694449,1589.3,1589.2,3.8154]
[1744764023470,1.25859,1589.2,1589.1,8.0738]
[1744764023667,9.7844249,1589.2,1589.1,8.0738]
[1744764023867,9.7844249,1589.2,1589.1,3.2078]
[1744764024374,9.7844249,1589.2,1589.1,4.46647]
[1744764024671,4.7109349,1589.2,1589.1,1.25867]
[1744764025070,5.07348,1589.3,1589.2,1.25859]
[1744764025273,5.9695349,1589.2,1589.1,1.2586]
[1744764025573,4.7109349,1589.2,1589.1,4.4664]
[1744764025774,4.46619,1589.5,1589.4,1.25843]
[1744764025975,5.9694249,1589.4,1589.3,1.25849]
[1744764026170,4.7109349,1589.4,1589.3,1.25849]
[1744764026376,4.7109349,1589.4,1589.3,4.46629]
[1744764026576,1.25822,1589.7,1589.6,1.25827]
[1744764026972,5.9691549,1589.7,1589.6,1.25827]
[1744764028070,4.7109349,1589.7,1589.4,3.4445]
[1744764028276,5.9692449,1589.6,1589.5,6.12433]
[1744764028577,1.25831,1589.6,1589.5,6.12433]
[1744764028777,5.9692449,1589.6,1589.5,6.12433]
[1744764029378,5.9692449,1589.6,1589.5,4.866]
[1744764029677,5.9692449,1589.6,1589.5,6.12435]
[1744764029875,4.7109349,1589.6,1589.5,4.866]
[1744764030175,5.9692049,1589.6,1589.5,4.866]
[1744764030677,5.9692049,1589.6,1589.5,6.12435]
[1744764032773,4.7109349,1589.6,1589.5,6.12435]
[1744764033185,1.25835,1589.5,1589.4,3.4445]
[1744764033373,6.773,1589.5,1589.1,8.01268]
[1744764033580,5.9694149,1589.4,1589.3,1.25846]
[1744764033881,4.7109349,1589.4,1589.3,1.25846]
[1744764034881,4.7109349,1589.4,1589.3,4.99326]
[1744764035278,5.9693649,1589.4,1589.3,3.7348]
[1744764035480,1.25858,1589.3,1589.2,1.25858]
[1744764035778,4.7109349,1589.3,1589.2,1.25858]
[1744764036175,5.9694449,1589.3,1589.2,5.02808]
[1744764036780,4.7109349,1589.3,1589.2,5.02808]
[1744764037676,3.2078,1589.5,1589.4,1.25843]
[1744764037883,1.25835,1589.5,1589.4,1.25843]
[1744764038080,5.9692849,1589.5,1589.4,1.25843]
[1744764038273,5.9692849,1589.5,1589.4,4.75693]
[1744764038583,3.7674,1589.6,1589.4,3.4985]
[1744764038783,4.7109349,1589.5,1589.4,4.75693]
[1744764039084,8.23339,1589.8,1589.7,1.25819]
[1744764039479,12.9443249,1589.8,1589.7,1.25819]
[1744764039676,11.6861349,1589.8,1589.7,1.25819]
[1744764039882,0.00945,1590.0,1589.9,1.25804]
[1744764040085,4.7203849,1590.0,1589.9,1.25804]
[1744764040479,5.9783449,1590.0,1589.9,1.25804]
[1744764040886,4.7203849,1590.0,1589.8,9.8049012]
[1744764041089,5.9689749,1589.9,1589.8,3.6838512]
[1744764041291,9.6244749,1589.9,1589.8,44.4838512]
[1744764041486,9.6244749,1589.9,1589.8,40.8094512]
[1744764045586,9.6244749,1589.9,1589.8,42.0675712]
[1744764046584,1.25842,1589.5,1589.2,3.2078]
[1744764046784,3.14584,1589.6,1589.2,1.25852]
[1744764047089,1.25851,1589.3,1589.2,1.25852]
[1744764047478,5.9694449,1589.3,1589.2,1.25852]
[1744764047673,5.9694449,1589.3,1589.2,42.05852]
[1744764048188,4.7109349,1589.3,1589.2,42.05852]
[1744764048388,4.98667,1589.4,1589.3,1.25851]
[1744764048583,9.6976049,1589.4,1589.3,1.25851]
[1744764049588,9.6976049,1589.4,1589.2,42.05853]
[1744764049784,9.6976049,1589.4,1589.3,1.25851]
[1744764049785,8.4391349,1589.4,1589.3,1.25851]
[1744764049980,4.7109349,1589.4,1589.2,45.26632]
[1744764050290,5.9694449,1589.3,1589.2,40.8]
[1744764050490,1.25851,1589.3,1589.2,40.8]
[1744764050690,5.9694449,1589.3,1589.2,40.8]
[1744764050886,9.7690449,1589.3,1589.2,40.8]
[1744764051182,14.7690449,1589.3,1589.2,40.8]
[1744764051387,9.7690449,1589.3,1589.2,40.8]
[1744764051787,1.25859,1589.2,1589.1,0.0094512]
[1744764051989,9.7691249,1589.2,1589.1,0.0094512]
[1744764052483,9.7691249,1589.2,1589.1,40.8094512]
[1744764052687,9.7691249,1589.2,1589.1,42.0681212]
[1744764053289,5.9695249,1589.2,1589.1,40.8094512]
[1744764054192,5.9695249,1589.2,1589.1,42.0681212]
[1744764054489,5.9695249,1589.2,1589.1,40.8094512]
[1744764054890,9.1773249,1589.2,1589.1,40.8094512]
[1744764055089,12.9066249,1589.2,1589.1,40.8094512]
[1744764058289,18.3214131,1589.2,1589.1,40.8094512]
[1744764058486,1.25891,1588.8,1588.7,8.4095]
[1744764058893,5.9698449,1588.8,1588.7,8.4095]
[1744764059497,5.9698449,1588.8,1588.7,50.46849]
[1744764059697,9.1776449,1588.8,1588.7,40.8]
[1744764059895,5.9698449,1588.8,1588.7,40.8]
[1744764060096,5.9698449,1588.8,1588.7,44.4936]
[1744764060689,1.25899,1588.7,1588.6,0.0094512]
[1744764060895,9.6794249,1588.7,1588.6,0.0094512]
[1744764061300,9.6794249,1588.7,1588.6,40.8094512]
[1744764064099,9.6794249,1588.7,1588.6,44.5220512]
[1744764065402,9.6794249,1588.7,1588.6,40.8094512]
[1744764065595,13.4225249,1588.7,1588.6,40.8094512]
[1744764069999,13.4225249,1588.7,1588.6,0.0094512]
[1744764070297,18.4225249,1588.7,1588.6,0.0094512]
[1744764070701,23.2825249,1588.7,1588.6,0.0094512]
[1744764072904,18.2825249,1588.7,1588.6,0.0094512]
[1744764073306,21.4903249,1588.7,1588.6,0.0094512]
[1744764073502,14.5394249,1588.7,1588.6,0.0094512]
[1744764073701,14.5394249,1588.7,1588.6,3.6877512]
[1744764074004,14.5394249,1588.7,1588.6,0.0094512]
[1744764075306,9.6794249,1588.7,1588.6,0.0094512]
[1744764075604,9.6794249,1588.7,1588.6,3.4619512]
[1744764075804,4.7109349,1588.7,1588.6,12.9288212]
[1744764075996,5.9699249,1588.7,1588.6,12.9288212]
[1744764076203,5.9699249,1588.7,1588.6,3.4619512]
[1744764076399,5.9699249,1588.7,1588.6,44.2619512]
[1744764077099,5.9699249,1588.7,1588.6,48.0065512]
[1744764078006,5.9699249,1588.7,1588.6,40.8094512]
[1744764078203,9.1777249,1588.7,1588.6,0.0094512]
[1744764078408,5.9699249,1588.7,1588.6,0.0094512]
[1744764078706,14.1777249,1588.7,1588.6,0.0094512]
[1744764078906,12.6602249,1588.7,1588.6,0.0094512]
[1744764080309,23.5962249,1588.7,1588.6,1.2e-06]
[1744764080705,1.25954,1588.0,1587.9,8.31029]
[1744764081107,4.7109349,1588.0,1587.8,3.7663]
[1744764081304,6.29867,1587.8,1587.5,8.37901177]
[1744764081612,1.25994,1587.5,1587.4,12.55901375]
[1744764081903,1.25994,1587.5,1587.4,10.45988375]
[1744764082107,14.5324749,1587.5,1587.4,6.21431375]
[1744764082309,14.5324749,1587.5,1587.4,4.63853375]
[1744764083006,14.5324749,1587.5,1587.4,1.38239375]
[1744764083211,14.5324749,1587.5,1587.4,3.75e-06]
[1744764085609,9.5324749,1587.5,1587.4,3.75e-06]
[1744764085997,1.26002,1587.4,1587.3,3.5990512]
[1744764086201,10.8339549,1587.4,1587.3,3.5990512]
[1744764086404,4.7109349,1587.4,1587.3,4.8591512]
[1744764087001,4.7109349,1587.4,1587.3,8.4766512]
[1744764087212,5.9709549,1587.4,1587.3,7.2165512]
[1744764087411,9.1787549,1587.4,1587.3,3.5990512]
[1744764087811,9.1787549,1587.4,1587.3,0.0094512]
[1744764088311,12.7510549,1587.4,1587.3,0.0094512]
[1744764088509,12.7510549,1587.4,1587.3,1.2e-06]
[1744764089310,17.7510549,1587.4,1587.3,1.2e-06]
[1744764089509,23.6870549,1587.4,1587.3,1.2e-06]
[1744764089714,27.2738549,1587.4,1587.3,1.2e-06]
[1744764090904,1.26089,1586.3,1586.2,1.26091]
[1744764091110,1.26087,1586.4,1586.3,1.26089]
[1744764091307,1.26089,1586.3,1586.2,45.87683]
[1744764091604,5.9718249,1586.3,1586.2,45.87683]
[1744764091801,5.9718249,1586.3,1586.2,50.87683]
[1744764092004,5.9718249,1586.3,1586.2,49.6159]
[1744764092209,1.26097,1586.2,1586.1,0.0094512]
[1744764092410,1.26113,1586.0,1585.9,3.8472]
[1744764092612,4.46893,1586.0,1585.9,3.8472]
[1744764092806,5.9720649,1586.0,1585.9,8.8472]
[1744764093014,1.26109,1586.1,1586.0,1.26112]
[1744764093318,1.26109,1586.1,1586.0,9.82312]
[1744764093616,4.7109349,1586.1,1586.0,9.82312]
[1744764093824,5.9719849,1586.1,1586.0,9.82312]
[1744764094213,4.7109349,1586.1,1586.0,9.82312]
[1744764094412,5.9719849,1586.1,1586.0,9.82312]
[1744764094617,4.7109349,1586.1,1586.0,9.82312]
[1744764095017,5.9719849,1586.1,1586.0,9.82312]
[1744764095318,5.9719849,1586.1,1586.0,8.562]
[1744764095822,5.9719849,1586.1,1586.0,3.562]
[1744764096023,5.9719849,1586.1,1586.0,44.362]
[1744764096716,9.4935849,1586.1,1586.0,44.362]
[1744764096916,1.26113,1586.0,1585.9,0.0063008]
[1744764097113,12.7014649,1586.0,1585.9,0.0063008]
[1744764097418,12.7014649,1586.0,1585.9,40.8063008]
[1744764097922,12.7014649,1586.0,1585.9,0.0063008]
[1744764098220,5.9720649,1586.0,1585.9,0.0063008]
[1744764098417,4.7109349,1586.0,1585.9,42.0675108]
[1744764098619,1.26104,1586.2,1586.1,1.26105]
[1744764098824,1.26105,1586.1,1586.0,3.7592]
[1744764099123,4.7109349,1586.1,1586.0,5.02033]
[1744764099325,5.9719849,1586.1,1586.0,5.02033]
[1744764099716,4.7109349,1586.1,1586.0,5.02033]
[1744764100016,4.7109349,1586.1,1586.0,10.02033]
[1744764100216,4.7109349,1586.1,1586.0,13.52833]
[1744764100711,5.9719849,1586.1,1586.0,13.52833]
[1744764100918,5.9719849,1586.1,1586.0,7.2672]
[1744764101214,5.9719849,1586.1,1586.0,3.7592]
[1744764101410,9.8479849,1586.1,1586.0,3.7592]
[1744764101711,1.26113,1586.0,1585.9,40.8063008]
[1744764101914,13.0447649,1586.0,1585.9,40.8063008]
[1744764102115,9.8369649,1586.0,1585.9,40.8063008]
[1744764102819,22.9077649,1586.0,1585.9,8e-07]
[1744764103426,17.9077649,1586.0,1585.9,8e-07]
[1744764104623,22.9077649,1586.0,1585.9,8e-07]
[1744764105316,28.8437649,1586.0,1585.9,8e-07]
[1744764106821,28.8437649,1586.0,1585.3,3.6927]
[1744764106822,27.5826349,1586.0,1585.4,40.8]
[1744764107022,3.2078,1585.5,1584.8,3.2078]
[1744764107228,1.26177,1585.2,1585.1,3.6927]
[1744764107531,1.26177,1585.2,1585.1,44.4927]
[1744764107726,5.9727049,1585.2,1585.1,44.4927]
[1744764108129,9.6600049,1585.2,1585.1,44.4927]
[1744764109130,1.26193,1585.0,1584.9,3.7478]
[1744764109317,4.46973,1585.0,1584.9,3.7478]
[1744764109522,9.1806649,1585.0,1584.9,44.5478]
[1744764109823,1.26191,1585.1,1585.0,1.26193]
[1744764110025,4.46963,1585.2,1585.1,1.26185]
[1744764110226,1.2712012,1585.3,1585.2,1.26177]
[1744764110429,1.26185,1585.1,1585.0,4.77637]
[1744764110733,1.26185,1585.1,1585.0,1.26187]
[1744764110929,1.26185,1585.1,1585.0,6.26187]
[1744764111935,1.2711812,1585.3,1585.2,1.26177]
[1744764112125,5.9821161,1585.3,1585.2,1.26177]
[1744764112433,1.2711812,1585.3,1585.2,6.26177]
[1744764113133,0.0094512,1585.3,1585.2,6.26177]
[1744764113636,1.2711412,1585.3,1585.2,6.26177]
[1744764114232,1.2711412,1585.3,1585.2,5.0]
[1744764114431,1.2711412,1585.3,1584.9,55.77561]
[1744764114432,4.7203861,1585.3,1584.9,55.77561]
[1744764114636,1.26184,1585.2,1585.1,1.26182]
[1744764115037,1.26184,1585.2,1585.1,5.0]
[1744764115533,1.26193,1585.0,1584.9,45.80977]
[1744764115934,1.26193,1585.0,1584.9,50.80977]
[1744764116235,1.26191,1585.1,1585.0,1.26188]
[1744764116434,4.7109349,1585.1,1585.0,1.26188]
[1744764116635,0.0094512,1585.3,1585.0,1.26188]
[1744764116636,1.26177,1585.2,1585.1,1.26181]
[1744764117533,1.26189,1585.1,1585.0,1.26184]
[1744764117935,1.26189,1585.1,1585.0,5.0]
[1744764118333,1.26193,1585.0,1584.9,40.8]
[1744764118534,12.8753649,1585.0,1584.9,40.8]
[1744764119439,9.6675649,1585.0,1584.9,40.8]
[1744764119940,5.9728649,1585.0,1584.9,42.06201]
[1744764120131,5.9728649,1585.0,1584.9,40.8]
[1744764120436,1.26186,1585.2,1585.1,1.26182]
[1744764120643,1.2711612,1585.3,1585.2,1.26177]
[1744764121339,1.26185,1585.1,1585.0,9.94124]
[1744764121639,1.26184,1585.2,1585.1,1.26181]
[1744764121838,4.7203861,1585.3,1585.2,1.26177]
[1744764122145,1.2712012,1585.3,1585.2,1.26177]
[1744764122353,1.2711412,1585.3,1585.2,1.26177]
[1744764123243,0.0094512,1585.3,1585.2,9.46957]
[1744764123547,0.0094512,1585.3,1585.2,1.26177]
[1744764123942,0.0094512,1585.3,1585.2,4.46957]
[1744764124144,0.0094512,1585.3,1585.2,9.46957]
[1744764124450,5.9820761,1585.3,1585.2,1.26177]
[1744764125048,0.0094512,1585.3,1585.2,6.26177]
[1744764125746,0.0094512,1585.3,1585.2,1.26177]
[1744764126546,0.0094512,1585.3,1585.2,4.46957]
[1744764126738,0.0094512,1585.3,1585.2,9.46957]
[1744764129242,3.2078,1586.0,1585.6,1.26145]
[1744764129447,1.26131,1585.8,1585.7,4.9075]
[1744764129746,1.26145,1585.6,1585.5,6.1225]
[1744764130348,5.9723849,1585.6,1585.5,9.7687]
[1744764130642,9.1801849,1585.6,1585.5,3.6462]
[1744764130847,9.1801849,1585.6,1585.5,4.90773]
[1744764131050,0.0094512,1585.7,1585.6,1.26145]
[1744764131247,4.7203861,1585.7,1585.6,4.90765]
[1744764133351,4.7203861,1585.7,1585.6,8.11545]
[1744764133852,4.7203861,1585.7,1585.6,4.90765]
[1744764134151,0.0094512,1585.7,1585.6,4.90765]
[1744764134350,0.0094512,1585.7,1585.6,8.11545]
[1744764134552,0.0094512,1585.7,1585.6,12.97645]
[1744764135150,3.2078,1586.0,1585.6,16.715]
[1744764135364,1.26079,1586.5,1586.1,3.15247]
[1744764135651,5.9717449,1586.4,1586.3,1.26083]
[1744764135847,1.26089,1586.3,1586.2,44.4541]
[1744764136051,9.5926249,1586.3,1586.2,40.8]
[1744764136252,18.3139249,1586.3,1586.2,40.8]
[1744764136453,17.0965249,1586.3,1586.2,40.8]
[1744764136952,12.0530349,1586.3,1586.2,42.06097]
[1744764137456,13.3139249,1586.3,1586.2,40.8]